fUST/lending_fUST_20250207
["ID","MTS","AMOUNT","RATE_DAILY","PERIOD"]
[351955459,1738860639251,-629.11,0.00014109,2]
[351955460,1738860639262,-500.0,0.00014109,2]
[351955461,1738860639272,-1289.83,0.00014109,2]
[351955462,1738860639282,-505.06596654,0.00014109,2]
[351955463,1738860639291,-12991.06,0.00014109,2]
[351955464,1738860639303,-4004.27,0.00014109,2]
[351955465,1738860639313,-500.0,0.00014109,2]
[351955466,1738860639323,-500.0,0.00014109,2]
[351955467,1738860639333,-1045.95,0.00014109,2]
[351955468,1738860639342,-1305.16,0.00014109,2]
[351955469,1738860639352,-2089.89,0.00014109,2]
[351955470,1738860639362,-1088.8,0.00014109,2]
[351955471,1738860639372,-5859.67,0.00014109,2]
[351955472,1738860639384,-500.0,0.00014109,2]
[351955473,1738860639394,-2000.18,0.00014109,2]
[351955474,1738860639404,-500.0,0.00014109,2]
[351955475,1738860639414,-34276.27,0.00014109,2]
[351955476,1738860639423,-935.2,0.00014109,2]
[351955477,1738860639433,-500.0,0.00014109,2]
[351955478,1738860639443,-1126.16,0.00014109,2]
[351955479,1738860639452,-1585.88,0.00014109,2]
[351955480,1738860639463,-694.62,0.00014109,2]
[351955481,1738860639472,-2260.65,0.00014109,2]
[351955482,1738860639482,-500.0,0.00014109,2]
[351955483,1738860639492,-2097.07,0.00014109,2]
[351955484,1738860639502,-1408.77,0.00014109,2]
[351955485,1738860639511,-500.0,0.00014109,2]
[351955486,1738860639520,-500.0,0.00014109,2]
[351955487,1738860639530,-500.0,0.00014109,2]
[351955488,1738860639540,-641.51,0.00014109,2]
[351955489,1738860639549,-1295.62,0.00014109,2]
[351955490,1738860639559,-604.25,0.00014109,2]
[351955491,1738860639568,-14852.93,0.00014109,2]
[351955492,1738860639578,-164.363906,0.00014109,2]
[351955493,1738860639588,-736.21,0.00014109,2]
[351955494,1738860639598,-500.0,0.00014109,2]
[351955495,1738860639608,-3435.29,0.00014109,2]
[351955496,1738860639619,-500.0,0.00014109,2]
[351955497,1738860639630,-500.0,0.00014109,2]
[351955498,1738860639639,-500.0,0.00014109,2]
[351955499,1738860639650,-500.0,0.00014109,2]
[351955500,1738860639659,-773.44,0.00014109,2]
[351955501,1738860639669,-1349.8,0.00014109,2]
[351955502,1738860639678,-813.0,0.00014109,2]
[351955503,1738860639688,-3304.25,0.00014109,2]
[351955504,1738860639698,-500.0,0.00014109,2]
[351955505,1738860639710,-2937.1,0.00014109,2]
[351955506,1738860639721,-1729.62,0.00014109,2]
[351955507,1738860639730,-807.50198021,0.00014109,2]
[351955508,1738860639747,-150.40801979,0.00014109,2]
[351955509,1738860639757,-613.35,0.00014109,2]
[351955510,1738860639766,-500.0,0.00014109,2]
[351955511,1738860639776,-87.88038716,0.00014109,2]
[351955512,1738860639801,-689.25961284,0.00014109,2]
[351955513,1738860639811,-1516.57,0.00014109,2]
[351955514,1738860639820,-8293.84,0.00014109,2]
[351955515,1738860639830,-1979.72,0.00014109,2]
[351955516,1738860639839,-500.0,0.00014109,2]
[351955517,1738860639849,-1033.88,0.00014109,2]
[351955518,1738860639859,-538.51,0.00014109,2]
[351955519,1738860639870,-694.94,0.00014109,2]
[351955520,1738860639880,-434.47761566,0.0001413,2]
[351955521,1738860639892,-1007.30797015,0.00014198,2]
[351955522,1738860639901,-30490.4764048,0.000142,5]
[351955523,1738860639913,-376.567,0.000142,5]
[351955527,1738860640282,-301.79,0.00013698,2]
[351955528,1738860640295,-198.21,0.00013698,2]
[351955529,1738860640305,-237100.64347331,0.000142,5]
[351955530,1738860640314,-32894.09709838,0.000142,5]
[351955531,1738860640325,-1059595.65231341,0.000142,5]
[351955532,1738860640338,-257610.81937817,0.000142,5]
[351955533,1738860640350,-596.59801914,0.000142,5]
[351955534,1738860640362,-121114.87477687,0.000142,5]
[351955535,1738860640372,-500.0,0.000142,5]
[351955536,1738860640382,-500.0,0.000142,3]
[351955537,1738860640392,-10000.0,0.000142,2]
[351955538,1738860640402,-691.0,0.000142,5]
[351955539,1738860640413,-50000.0,0.000142,5]
[351955540,1738860640423,-154.725864,0.000142,2]
[351955541,1738860640433,-151.0,0.000142,2]
[351955542,1738860640443,-151.0,0.000142,2]
[351955543,1738860640452,-151.0,0.000142,2]
[351955544,1738860640461,-244.136295,0.000142,2]
[351955545,1738860640470,-151.0,0.000142,2]
[351955546,1738860640480,-170.0,0.000142,2]
[351955547,1738860640490,-170.0,0.000142,2]
[351955548,1738860640499,-170.0,0.000142,2]
[351955549,1738860640510,-170.0,0.000142,2]
[351955550,1738860640519,-863.765619,0.000142,2]
[351955552,1738860640528,-863.765619,0.000142,2]
[351955554,1738860640538,-151.0,0.000142,2]
[351955556,1738860640547,-151.0,0.000142,2]
[351955558,1738860640556,-151.0,0.000142,2]
[351955560,1738860640565,-151.0,0.000142,2]
[351955562,1738860640575,-151.0,0.000142,2]
[351955564,1738860640584,-151.0,0.000142,2]
[351955566,1738860640594,-151.0,0.000142,2]
[351955568,1738860640603,-168.211163,0.000142,2]
[351955570,1738860640614,-155.230144,0.000142,2]
[351955572,1738860640624,-258.157409,0.000142,2]
[351955574,1738860640633,-258.157409,0.000142,2]
[351955576,1738860640643,-258.157409,0.000142,2]
[351955578,1738860640653,-258.157409,0.000142,2]
[351955581,1738860640662,-151.0,0.000142,2]
[351955582,1738860640672,-151.0,0.000142,2]
[351955584,1738860640681,-151.0,0.000142,2]
[351955586,1738860640690,-153.600231,0.000142,2]
[351955588,1738860640700,-557.582955,0.000142,2]
[351955590,1738860640709,-557.582955,0.000142,2]
[351955592,1738860640718,-557.582955,0.000142,2]
[351955594,1738860640728,-557.582955,0.000142,2]
[351955596,1738860640737,-214.543977,0.000142,2]
[351955599,1738860640748,-214.543977,0.000142,2]
[351955601,1738860640757,-214.543977,0.000142,2]
[351955602,1738860640766,-214.543977,0.000142,2]
[351955604,1738860640775,-151.0,0.000142,2]
[351955606,1738860640784,-151.0,0.000142,2]
[351955608,1738860640795,-151.0,0.000142,2]
[351955610,1738860640804,-151.0,0.000142,2]
[351955612,1738860640813,-151.0,0.000142,2]
[351955614,1738860640822,-151.0,0.000142,2]
[351955616,1738860640832,-190.332827,0.000142,2]
[351955618,1738860640841,-190.332827,0.000142,2]
[351955620,1738860640851,-151.0,0.000142,2]
[351955622,1738860640867,-151.0,0.000142,2]
[351955624,1738860640878,-190.332827,0.000142,2]
[351955626,1738860640889,-190.332827,0.000142,2]
[351955629,1738860640900,-151.599336,0.000142,2]
[351955631,1738860640910,-151.0,0.000142,2]
[351955632,1738860640920,-151.0,0.000142,2]
[351955634,1738860640929,-151.0,0.000142,2]
[351955637,1738860640939,-151.0,0.000142,2]
[351955639,1738860640949,-259.372227,0.000142,2]
[351955640,1738860640958,-259.372227,0.000142,2]
[351955642,1738860640968,-259.372227,0.000142,2]
[351955644,1738860640981,-151.0,0.000142,2]
[351955646,1738860640990,-259.372227,0.000142,2]
[351955648,1738860641000,-151.0,0.000142,2]
[351955650,1738860641009,-151.0,0.000142,2]
[351955652,1738860641019,-151.0,0.000142,2]
[351955654,1738860641029,-151.0,0.000142,2]
[351955656,1738860641039,-151.0,0.000142,2]
[351955658,1738860641049,-151.0,0.000142,2]
[351955660,1738860641059,-151.0,0.000142,2]
[351955662,1738860641068,-151.0,0.000142,2]
[351955664,1738860641077,-151.0,0.000142,2]
[351955665,1738860641087,-151.0,0.000142,2]
[351955667,1738860641098,-151.0,0.000142,2]
[351955669,1738860641108,-240.34235,0.000142,2]
[351955670,1738860641276,-240.34235,0.000142,2]
[351955671,1738860641287,-240.34235,0.000142,2]
[351955672,1738860641297,-240.34235,0.000142,2]
[351955673,1738860641307,-151.0,0.000142,2]
[351955674,1738860641317,-151.0,0.000142,2]
[351955675,1738860641327,-510.938317,0.000142,2]
[351955676,1738860641337,-510.938317,0.000142,2]
[351955677,1738860641346,-510.938317,0.000142,2]
[351955678,1738860641356,-510.938317,0.000142,2]
[351955679,1738860641366,-150.0,0.00014208,2]
[351955680,1738860641376,-537.0,0.00014208,2]
[351955681,1738860641386,-1975.0,0.00014208,2]
[351955682,1738860641396,-2297.0,0.00014208,2]
[351955683,1738860641406,-396.0,0.00014208,2]
[351955684,1738860641416,-150.0,0.00014208,2]
[351955685,1738860641426,-1738.37855275,0.00014214,2]
[351955686,1738860641435,-150.0,0.00014225,2]
[351955687,1738860641445,-150.0,0.00014225,2]
[351955688,1738860641455,-150.0,0.00014225,2]
[351955689,1738860641465,-500.0,0.00014246,2]
[351955690,1738860641474,-500.0,0.00014246,2]
[351955691,1738860641484,-500.0,0.00014246,2]
[351955692,1738860641494,-151.0,0.00014246,2]
[351955693,1738860641504,-151.0,0.00014246,2]
[351955694,1738860641514,-500.0,0.00014246,2]
[351955695,1738860641523,-874.35,0.00014246,2]
[351955696,1738860641532,-500.0,0.00014246,2]
[351955697,1738860641542,-890.05,0.00014246,2]
[351955698,1738860641552,-170.0,0.00014246,2]
[351955699,1738860641561,-170.0,0.00014246,2]
[351955700,1738860641571,-592.88,0.00014246,2]
[351955701,1738860641581,-151.0,0.00014246,2]
[351955702,1738860641590,-638.42,0.00014246,2]
[351955703,1738860641600,-500.0,0.00014246,2]
[351955704,1738860641611,-500.0,0.00014246,2]
[351955705,1738860641620,-500.0,0.00014246,2]
[351955706,1738860641630,-500.0,0.00014246,2]
[351955707,1738860641639,-500.0,0.00014246,2]
[351955708,1738860641649,-151.0,0.00014246,2]
[351955709,1738860641660,-528.82,0.00014246,2]
[351955710,1738860641669,-659.27,0.00014246,2]
[351955711,1738860641679,-258.157409,0.00014246,2]
[351955712,1738860641688,-500.0,0.00014246,2]
[351955713,1738860641698,-258.157409,0.00014246,2]
[351955714,1738860641708,-389.54491019,0.00014246,2]
[351955715,1738860641718,-902.8,0.00014246,2]
[351955716,1738860641727,-860.17,0.00014246,2]
[351955717,1738860641737,-668.47,0.00014246,2]
[351955718,1738860641747,-1319.01,0.00014246,2]
[351955719,1738860641757,-500.0,0.00014246,2]
[351955720,1738860641766,-1346.32,0.00014246,2]
[351955721,1738860641776,-500.0,0.00014246,2]
[351955722,1738860641785,-573.69,0.00014246,2]
[351955723,1738860641794,-500.0,0.00014246,2]
[351955724,1738860641805,-610.99,0.00014246,2]
[351955725,1738860641814,-1198.28,0.00014246,2]
[351955726,1738860641823,-929.35,0.00014246,2]
[351955727,1738860641833,-500.0,0.00014246,2]
[351955728,1738860641843,-557.582955,0.00014246,2]
[351955729,1738860641853,-500.0,0.00014246,2]
[351955730,1738860641863,-557.582955,0.00014246,2]
[351955731,1738860641873,-500.0,0.00014246,2]
[351955732,1738860641883,-695.09,0.00014246,2]
[351955733,1738860641895,-500.0,0.00014246,2]
[351955734,1738860641904,-1156.7,0.00014246,2]
[351955735,1738860641914,-2966.68,0.00014246,2]
[351955736,1738860641923,-214.543977,0.00014246,2]
[351955737,1738860641934,-675.52,0.00014246,2]
[351955738,1738860641944,-214.543977,0.00014246,2]
[351955739,1738860641954,-1042.16,0.00014246,2]
[351955740,1738860641964,-151.0,0.00014246,2]
[351955741,1738860641974,-620.64,0.00014246,2]
[351955742,1738860641984,-1230.82,0.00014246,2]
[351955743,1738860641994,-151.0,0.00014246,2]
[351955744,1738860642003,-918.82,0.00014246,2]
[351955745,1738860642013,-2878.6,0.00014246,2]
[351955746,1738860642023,-619.57,0.00014246,2]
[351955747,1738860642034,-6620.09,0.00014246,2]
[351955748,1738860642043,-1683.13,0.00014246,2]
[351955749,1738860642053,-500.0,0.00014246,2]
[351955750,1738860642063,-3865.66,0.00014246,2]
[351955751,1738860642073,-1492.26,0.00014246,2]
[351955752,1738860642083,-1127.13,0.00014246,2]
[351955753,1738860642093,-629.11,0.00014246,2]
[351955754,1738860642102,-202.90779649,0.00014246,2]
[351955755,1738860642114,-1289.83,0.00014246,2]
[351955756,1738860642123,-151.0,0.00014246,2]
[351955757,1738860642132,-12991.06,0.00014246,2]
[351955758,1738860642142,-4004.27,0.00014246,2]
[351955759,1738860642152,-190.332827,0.00014246,2]
[351955760,1738860642162,-151.0,0.00014246,2]
[351955761,1738860642171,-500.0,0.00014246,2]
[351955762,1738860642180,-500.0,0.00014246,2]
[351955763,1738860642190,-190.332827,0.00014246,2]
[351955764,1738860642200,-1045.95,0.00014246,2]
[351955765,1738860642210,-1305.16,0.00014246,2]
[351955766,1738860642219,-2089.89,0.00014246,2]
[351955767,1738860642229,-1088.8,0.00014246,2]
[351955768,1738860642238,-5859.67,0.00014246,2]
[351955769,1738860642248,-500.0,0.00014246,2]
[351955770,1738860642257,-2000.18,0.00014246,2]
[351955771,1738860642267,-228.279158,0.00014246,2]
[351955772,1738860642277,-500.0,0.00014246,2]
[351955773,1738860642286,-151.0,0.00014246,2]
[351955774,1738860642296,-34276.27,0.00014246,2]
[351955775,1738860642305,-935.2,0.00014246,2]
[351955776,1738860642315,-500.0,0.00014246,2]
[351955777,1738860642326,-1126.16,0.00014246,2]
[351955778,1738860642337,-1585.88,0.00014246,2]
[351955779,1738860642347,-259.372227,0.00014246,2]
[351955780,1738860642357,-694.62,0.00014246,2]
[351955781,1738860642369,-259.372227,0.00014246,2]
[351955782,1738860642379,-2260.65,0.00014246,2]
[351955783,1738860642389,-500.0,0.00014246,2]
[351955784,1738860642399,-151.0,0.00014246,2]
[351955785,1738860642409,-151.0,0.00014246,2]
[351955786,1738860642418,-151.0,0.00014246,2]
[351955787,1738860642428,-2097.07,0.00014246,2]
[351955788,1738860642437,-1408.77,0.00014246,2]
[351955789,1738860642447,-151.0,0.00014246,2]
[351955790,1738860642456,-500.0,0.00014246,2]
[351955791,1738860642466,-500.0,0.00014246,2]
[351955792,1738860642481,-500.0,0.00014246,2]
[351955793,1738860642491,-641.51,0.00014246,2]
[351955794,1738860642500,-1295.62,0.00014246,2]
[351955795,1738860642510,-604.25,0.00014246,2]
[351955796,1738860642520,-14852.93,0.00014246,2]
[351955797,1738860642529,-151.0,0.00014246,2]
[351955798,1738860642540,-736.21,0.00014246,2]
[351955799,1738860642550,-500.0,0.00014246,2]
[351955800,1738860642560,-3435.29,0.00014246,2]
[351955801,1738860642570,-500.0,0.00014246,2]
[351955802,1738860642579,-500.0,0.00014246,2]
[351955803,1738860642588,-500.0,0.00014246,2]
[351955804,1738860642598,-500.0,0.00014246,2]
[351955805,1738860642608,-773.44,0.00014246,2]
[351955806,1738860642621,-1349.8,0.00014246,2]
[351955807,1738860642630,-813.0,0.00014246,2]
[351955808,1738860642639,-3304.25,0.00014246,2]
[351955809,1738860642649,-500.0,0.00014246,2]
[351955810,1738860642658,-2937.1,0.00014246,2]
[351955811,1738860642668,-1729.62,0.00014246,2]
[351955812,1738860642678,-957.91,0.00014246,2]
[351955813,1738860642687,-613.35,0.00014246,2]
[351955814,1738860642697,-500.0,0.00014246,2]
[351955815,1738860642706,-777.14,0.00014246,2]
[351955816,1738860642717,-151.0,0.00014246,2]
[351955817,1738860642726,-240.34235,0.00014246,2]
[351955818,1738860642736,-1516.57,0.00014246,2]
[351955819,1738860642746,-8293.84,0.00014246,2]
[351955820,1738860642756,-1979.72,0.00014246,2]
[351955821,1738860642766,-240.34235,0.00014246,2]
[351955822,1738860642775,-151.0,0.00014246,2]
[351955823,1738860642785,-510.938317,0.00014246,2]
[351955824,1738860642795,-510.938317,0.00014246,2]
[351955825,1738860642804,-500.0,0.00014246,2]
[351955826,1738860642814,-1033.88,0.00014246,2]
[351955827,1738860642823,-694.94,0.00014246,2]
[351955828,1738860642833,-538.51,0.00014246,2]
[351955829,1738860642843,-276.9926375,0.00014247,2]
[351955830,1738860642853,-863.765619,0.00014268,2]
[351955831,1738860642864,-863.765619,0.00014268,2]
[351955832,1738860642874,-151.0,0.00014294,2]
[351955833,1738860642885,-274.32481463,0.00014295,2]
[351955834,1738860642896,-500.0,0.000143,2]
[351955835,1738860642906,-249082.22278168,0.000143,5]
[351955836,1738860642922,-9094.63786382,0.000143,5]
[351955837,1738860642939,-386.76,0.000143,5]
[351955838,1738860642951,-3987.57932694,0.000143,5]
[351955839,1738860643053,-1457.42978676,0.000143,5]
[351955840,1738860643065,-574.85984091,0.000143,5]
[351955887,1738860643790,-285.41699059,0.000143,5]
[351956725,1738861544147,-652.68,0.00010959,2]
[351956726,1738861544172,-215.22881192,0.00012732,2]
[351956727,1738861628137,-2114.17797328,0.00012732,2]
[351956728,1738861628159,-185.7994486,0.00012904,2]
[351956729,1738861628180,-800.0,0.0001315,2]
[351956730,1738861628204,-259.49371984,0.00013394,2]
[351956731,1738861638105,-69.43343591,0.00013394,2]
[351956732,1738861638134,-271.54850984,0.00013598,2]
[351956733,1738861638159,-300.0,0.00013683,2]
[351956734,1738861638183,-7438.69753278,0.00013683,2]
[351956735,1738861638216,-500.0,0.00013698,2]
[351956736,1738861638240,-500.0,0.00013698,2]
[351956737,1738861638266,-500.0,0.00013698,2]
[351956738,1738861638293,-500.0,0.00013698,2]
[351956739,1738861638316,-500.0,0.00013698,2]
[351956740,1738861638341,-500.0,0.00013698,2]
[351956741,1738861638363,-500.0,0.00013698,2]
[351956742,1738861638385,-617.9,0.00013698,2]
[351956743,1738861638407,-500.0,0.00013698,2]
[351956744,1738861638429,-500.0,0.00013698,2]
[351956745,1738861638455,-500.0,0.00013698,2]
[351956746,1738861638478,-296.78825191,0.00013698,2]
[351956747,1738861638501,-500.0,0.00013698,2]
[351956748,1738861638524,-500.0,0.00013698,2]
[351956749,1738861638546,-500.0,0.00013698,2]
[351956750,1738861638569,-500.0,0.00013698,2]
[351956751,1738861638590,-500.0,0.00013698,2]
[351956752,1738861638613,-500.0,0.00013698,2]
[351956753,1738861638636,-500.0,0.00013698,2]
[351956754,1738861638658,-500.0,0.00013698,2]
[351956755,1738861638681,-500.0,0.00013698,2]
[351956756,1738861638703,-500.0,0.00013698,2]
[351956757,1738861638725,-500.0,0.00013698,2]
[351956758,1738861638748,-272.89560467,0.00013698,2]
[351956804,1738861831980,-250.0,0.00012842,2]
[351956805,1738861831990,-700.0,0.0001315,2]
[351956807,1738861832000,-151.0,0.0001369,2]
[351956808,1738861832009,-300.0,0.00013696,2]
[351956811,1738861832019,-1969.16313736,0.00013697,2]
[351956886,1738861837911,-5469.53439542,0.00013697,2]
[351956888,1738861837921,-190.81073941,0.00013698,2]
[351956890,1738861837931,-755.15,0.00013698,2]
[351956892,1738861837941,-430.72343949,0.00013698,2]
[351956894,1738861837950,-260.12197243,0.00013698,2]
[351956896,1738861837960,-500.0,0.00013698,2]
[351956898,1738861837970,-313.61657474,0.00013698,2]
[351956900,1738861837979,-500.0,0.00013698,2]
[351956901,1738861837989,-500.0,0.00013698,2]
[351956904,1738861837999,-536.44,0.00013698,2]
[351956906,1738861838009,-500.0,0.00013698,2]
[351956908,1738861838022,-550.04,0.00013698,2]
[351956910,1738861838032,-1010.26347364,0.00013698,2]
[351956912,1738861838042,-500.0,0.00013698,2]
[351956914,1738861838053,-500.0,0.00013698,2]
[351956916,1738861838062,-500.0,0.00013698,2]
[351956918,1738861838072,-704.62,0.00013698,2]
[351956920,1738861838083,-500.0,0.00013698,2]
[351956922,1738861838092,-500.0,0.00013698,2]
[351956924,1738861838102,-500.0,0.00013698,2]
[351956927,1738861838112,-500.0,0.00013698,2]
[351956930,1738861838124,-500.0,0.00013698,2]
[351956933,1738861838133,-500.0,0.00013698,2]
[351956936,1738861838142,-500.0,0.00013698,2]
[351956939,1738861838151,-500.0,0.00013698,2]
[351956942,1738861838161,-500.0,0.00013698,2]
[351956945,1738861838171,-583.96,0.00013698,2]
[351956947,1738861838180,-500.0,0.00013698,2]
[351956949,1738861838189,-500.0,0.00013698,2]
[351956951,1738861838199,-571.87,0.00013698,2]
[351956953,1738861838210,-500.0,0.00013698,2]
[351956955,1738861838220,-500.0,0.00013698,2]
[351956957,1738861838230,-500.0,0.00013698,2]
[351956959,1738861838240,-500.0,0.00013698,2]
[351956962,1738861838250,-500.0,0.00013698,2]
[351956963,1738861838261,-500.21,0.00013698,2]
[351956965,1738861838275,-1044.21,0.00013698,2]
[351956967,1738861838285,-817.62,0.00013698,2]
[351956969,1738861838295,-658.86,0.00013698,2]
[351956971,1738861838306,-1065.84,0.00013698,2]
[351956974,1738861838316,-500.0,0.00013698,2]
[351956976,1738861838326,-500.0,0.00013698,2]
[351956978,1738861838336,-500.0,0.00013698,2]
[351956979,1738861838347,-500.0,0.00013698,2]
[351956982,1738861838359,-500.0,0.00013698,2]
[351956984,1738861838371,-1000.32,0.00013698,2]
[351956986,1738861838382,-500.0,0.00013698,2]
[351956988,1738861838391,-500.0,0.00013698,2]
[351956990,1738861838401,-775.27,0.00013698,2]
[351956992,1738861838411,-500.0,0.00013698,2]
[351956994,1738861838421,-500.0,0.00013698,2]
[351956996,1738861838430,-500.0,0.00013698,2]
[351956998,1738861838440,-500.0,0.00013698,2]
[351957000,1738861838450,-556.9,0.00013698,2]
[351957002,1738861838459,-937.72,0.00013698,2]
[351957004,1738861838469,-500.0,0.00013698,2]
[351957006,1738861838479,-500.0,0.00013698,2]
[351957008,1738861838489,-500.0,0.00013698,2]
[351957010,1738861838498,-1200.62,0.00013698,2]
[351957012,1738861838507,-500.0,0.00013698,2]
[351957014,1738861838518,-599.28,0.00013698,2]
[351957016,1738861838528,-470.0,0.00013698,2]
[351957018,1738861838537,-727.39,0.00013698,2]
[351957020,1738861838547,-500.0,0.00013698,2]
[351957022,1738861838557,-500.0,0.00013698,2]
[351957024,1738861838566,-500.0,0.00013698,2]
[351957026,1738861838576,-539.42,0.00013698,2]
[351957028,1738861838585,-500.0,0.00013698,2]
[351957030,1738861838595,-500.0,0.00013698,2]
[351957032,1738861838605,-500.0,0.00013698,2]
[351957034,1738861838615,-3060.32,0.00013698,2]
[351957036,1738861838626,-1332.48,0.00013698,2]
[351957038,1738861838635,-553.85,0.00013698,2]
[351957040,1738861838644,-326.89083876,0.00013698,2]
[351957042,1738861838653,-825.04,0.00013698,2]
[351957044,1738861838663,-500.0,0.00013698,2]
[351957046,1738861838673,-892.32,0.00013698,2]
[351957048,1738861838682,-500.0,0.00013698,2]
[351957050,1738861838692,-974.39,0.00013698,2]
[351957052,1738861838702,-500.0,0.00013698,2]
[351957054,1738861838711,-500.0,0.00013698,2]
[351957056,1738861838721,-500.0,0.00013698,2]
[351957058,1738861838730,-500.0,0.00013698,2]
[351957060,1738861838739,-455.42794334,0.00013698,2]
[351957062,1738861838748,-2278.89,0.00013698,2]
[351957064,1738861838759,-500.0,0.00013698,2]
[351957066,1738861838768,-934.64,0.00013698,2]
[351957068,1738861838778,-500.0,0.00013698,2]
[351957070,1738861838787,-500.0,0.00013698,2]
[351957072,1738861838797,-828.04,0.00013698,2]
[351957074,1738861838807,-1082.92,0.00013698,2]
[351957076,1738861838816,-1033.26,0.00013698,2]
[351957078,1738861838826,-500.0,0.00013698,2]
[351957080,1738861838835,-518.88,0.00013698,2]
[351957082,1738861838845,-4638.91,0.00013698,2]
[351957084,1738861838855,-27135.38,0.00013698,2]
[351957087,1738861838865,-13108.84,0.00013698,2]
[351957088,1738861838875,-1021.12,0.00013698,2]
[351957091,1738861838886,-500.0,0.00013698,2]
[351957092,1738861838896,-500.0,0.00013698,2]
[351957094,1738861838905,-3170.82,0.00013698,2]
[351957096,1738861838915,-335.93,0.00013698,2]
[351957099,1738861838925,-504.08,0.00013698,2]
[351957100,1738861838935,-1491.4,0.00013698,2]
[351957103,1738861838945,-227.10439533,0.00013698,2]
[351957104,1738861838954,-1154.09,0.00013698,2]
[351957107,1738861838964,-500.0,0.00013698,2]
[351957108,1738861838974,-1654.5,0.00013698,2]
[351957110,1738861838983,-500.0,0.00013698,2]
[351957113,1738861838993,-500.0,0.00013698,2]
[351957114,1738861839003,-448.35721145,0.00013698,2]
[351957117,1738861839013,-1115.28,0.00013698,2]
[351957119,1738861839022,-1583.48,0.00013698,2]
[351957121,1738861839031,-773.59,0.00013698,2]
[351957123,1738861839041,-615.24,0.00013698,2]
[351957125,1738861839051,-500.0,0.00013698,2]
[351957127,1738861839060,-500.0,0.00013698,2]
[351957129,1738861839069,-1025.7,0.00013698,2]
[351957131,1738861839079,-582.84,0.00013698,2]
[351957133,1738861839088,-1255.49,0.00013698,2]
[351957134,1738861839097,-500.0,0.00013698,2]
[351957136,1738861839107,-500.0,0.00013698,2]
[351957139,1738861839120,-2719.61,0.00013698,2]
[351957141,1738861839130,-663.72,0.00013698,2]
[351957143,1738861839139,-1660.18,0.00013698,2]
[351957145,1738861839149,-524.48,0.00013698,2]
[351957147,1738861839159,-500.0,0.00013698,2]
[351957149,1738861839169,-2325.2,0.00013698,2]
[351957151,1738861839179,-500.0,0.00013698,2]
[351957153,1738861839189,-507.86,0.00013698,2]
[351957155,1738861839199,-500.0,0.00013698,2]
[351957157,1738861839208,-1369.28,0.00013698,2]
[351957159,1738861839218,-500.0,0.00013698,2]
[351957161,1738861839227,-6565.96,0.00013698,2]
[351957163,1738861839237,-643.63,0.00013698,2]
[351957165,1738861839246,-1567.27,0.00013698,2]
[351957167,1738861839257,-503.59471094,0.00013698,2]
[351957169,1738861839270,-500.0,0.00013698,2]
[351957171,1738861839280,-500.0,0.00013698,2]
[351957173,1738861839289,-500.0,0.00013698,2]